bitfinex/quotes_SOLUSD_20220103
["timestamp","ask_amount","ask_price","bid_price","bid_amount"]
[1641205892841,13.23299256,173.64,173.53,8.1]
[1641205893642,12.97299256,173.64,173.53,8.1]
[1641205894246,12.97299256,173.64,173.53,8.36]
[1641205894443,12.97299256,173.64,173.53,17.0037]
[1641205895043,13.23299256,173.64,173.53,16.7437]
[1641205895443,13.23299256,173.64,173.53,8.1]
[1641205895644,13.23299256,173.64,173.53,8.36]
[1641205897248,13.23299256,173.64,173.53,8.1]
[1641205901155,12.73299256,173.64,173.53,17.0037]
[1641205901552,12.73299256,173.64,173.53,16.7437]
[1641205901752,12.73299256,173.64,173.53,8.1]
[1641205902352,13.23299256,173.64,173.53,8.1]
[1641205903354,13.23299256,173.64,173.53,8.36]
[1641205904153,13.23299256,173.64,173.53,8.1]
[1641205904958,13.23299256,173.64,173.53,8.36]
[1641205905358,13.23299256,173.64,173.53,17.0036]
[1641205906061,13.23299256,173.64,173.54,1.3415]
[1641205907362,13.23299256,173.64,173.52,8.6441]
[1641205907561,13.23299256,173.64,173.52,8.9041]
[1641205907862,12.97299256,173.64,173.52,8.9041]
[1641205908062,12.97299256,173.64,173.53,1.2976]
[1641205908261,12.97299256,173.64,173.53,9.941]
[1641205908462,12.97299256,173.64,173.53,1.2976]
[1641205909264,13.23299256,173.64,173.53,1.2976]
[1641205909965,13.23299256,173.64,173.53,1.5576]
[1641205910566,12.97299256,173.64,173.53,1.5576]
[1641205910769,12.97299256,173.64,173.53,9.6576]
[1641205911769,11.70259256,173.64,173.53,9.6576]
[1641205911970,3.32069256,173.64,173.53,18.3012]
[1641205912172,2.82069256,173.64,173.53,18.3012]
[1641205912570,2.56069256,173.64,173.53,18.3012]
[1641205913570,11.20269256,173.64,173.53,18.3012]
[1641205914594,2.56069256,173.64,173.53,18.3012]
[1641205914794,3.27255496,173.74,173.54,1.42669368]
[1641205914995,4.62525496,173.74,173.63,8.6385]
[1641205915397,1.3527,173.74,173.63,8.8985]
[1641205915594,8.6386,173.72,173.63,8.6385]
[1641205915795,29.60037066,173.71,173.62,8.1]
[1641205916294,29.86037066,173.71,173.62,8.1]
[1641205916494,29.60037066,173.71,173.62,8.36]
[1641205916694,29.86037066,173.71,173.62,8.36]
[1641205916895,29.60037066,173.71,173.62,8.36]
[1641205917696,29.60037066,173.71,173.62,8.1]
[1641205917897,38.23907066,173.71,173.62,16.999]
[1641205918298,38.49907066,173.71,173.62,16.999]
[1641205918497,38.99907066,173.71,173.62,16.999]
[1641205919097,38.99907066,173.71,173.62,16.739]
[1641205919297,38.73907066,173.71,173.62,16.739]
[1641205919498,38.73907066,173.71,173.62,16.999]
[1641205920501,38.99907066,173.71,173.62,16.999]
[1641205922200,38.99907066,173.71,173.63,1.2449]
[1641205922604,38.99907066,173.71,173.63,1.5049]
[1641205922802,38.49907066,173.71,173.63,10.1435]
[1641205923001,38.99907066,173.71,173.63,10.1435]
[1641205923202,30.36037066,173.71,173.63,10.1435]
[1641205924603,29.60037066,173.71,173.63,10.1435]
[1641205925606,2.9344973,173.71,173.64,8.1]
[1641205926005,8.6368,173.75,173.67,8.6367]
[1641205926405,0.5,173.75,173.67,8.8967]
[1641205926605,31.43423832,173.75,173.67,8.8967]
[1641205926806,31.43423832,173.75,173.68,1.2939]
[1641205927006,32.19423832,173.75,173.68,1.5539]
[1641205928613,2.48948153,173.74,173.68,1.5539]
[1641205930812,2.74948153,173.74,173.68,1.2939]
[1641205931212,2.48948153,173.74,173.68,1.2939]
[1641205932113,2.48948153,173.74,173.68,1.5539]
[1641205932813,2.48948153,173.74,173.68,1.2939]
[1641205933213,11.38668153,173.74,173.68,1.2939]
[1641205934216,11.12668153,173.74,173.68,1.2939]
[1641205934419,2.48948153,173.74,173.68,1.5539]
[1641205936316,2.48948153,173.74,173.68,9.9299]
[1641205936516,2.48948153,173.74,173.66,8.1]
[1641205937316,2.48948153,173.74,173.66,16.7371]
[1641205937917,2.48948153,173.74,173.66,16.9971]
[1641205938320,27.64604005,173.76,173.66,16.9971]
[1641205939119,27.64604005,173.76,173.67,1.2296]
[1641205939320,27.64604005,173.76,173.69,8.6355]
[1641205939523,27.64604005,173.76,173.69,8.8955]
[1641205940955,2.56751178,173.77,173.69,8.8955]
[1641205941154,2.56751178,173.77,173.69,16.9955]
[1641205947362,2.56751178,173.77,173.69,16.7355]
[1641205948566,2.56751178,173.77,173.69,16.9955]
[1641205957277,2.56751178,173.77,173.69,18.42219368]
[1641205959078,75.1035,173.81,173.69,18.42219368]
[1641205959279,23.8626786,173.82,173.69,18.42219368]
[1641205960279,26.50277241,173.82,173.69,18.42219368]
[1641205960479,26.76277241,173.82,173.7,1.2571]
[1641205960679,26.76277241,173.82,173.71,8.79429564]
[1641205960879,26.76277241,173.82,173.74,8.633]
[1641205961082,35.39597241,173.82,173.74,8.893]
[1641205961281,35.13597241,173.82,173.74,8.893]
[1641205961484,26.76277241,173.82,173.74,8.893]
[1641205962684,26.50277241,173.82,173.74,8.893]
[1641205964786,26.76277241,173.82,173.74,8.893]
[1641205965796,26.76277241,173.82,173.74,8.633]
[1641205965990,35.39597241,173.82,173.74,8.633]
[1641205966388,35.13597241,173.82,173.74,8.633]
[1641205966788,26.50277241,173.82,173.74,8.633]
[1641205967017,26.50277241,173.82,173.74,8.893]
[1641205970821,35.39607241,173.82,173.74,0.26]
[1641205971023,35.39607241,173.82,173.72,8.6337]
[1641205971627,1.307,173.81,173.72,8.6337]
[1641205971825,2.94134477,173.81,173.72,8.6337]
[1641205972024,3.20134477,173.81,173.72,8.6337]
[1641205972223,2.94134477,173.81,173.72,8.6337]
[1641205972423,2.94134477,173.81,173.72,8.8937]
[1641205972823,1.63434477,173.81,173.72,8.8937]
[1641205973426,26.50277241,173.82,173.76,8.6321]
[1641205973725,26.50277241,173.82,173.73,1.2702]
[1641205973929,26.50277241,173.82,173.73,1.5302]
[1641205974529,27.73607241,173.82,173.73,1.5302]
[1641205975328,36.36897241,173.82,173.75,8.6327]
[1641205975529,36.86897241,173.82,173.75,8.8927]
[1641205976127,28.23607241,173.82,173.75,8.8927]
[1641205976336,27.73607241,173.82,173.75,8.8927]
[1641205976629,3.87339381,173.82,173.75,8.8927]
[1641205978832,73.7002,173.84,173.76,1.37893832]
[1641205979046,73.7002,173.84,173.8,8.6301]
[1641205979232,1.63434477,173.86,173.8,8.6301]
[1641205979433,76.2937,173.87,173.8,8.8901]
[1641205980034,3.0045809,173.86,173.8,8.8901]
[1641205982238,3.0045809,173.86,173.79,8.6306]
[1641205983437,3.0045809,173.86,173.79,8.8906]
[1641205985241,76.2937,173.87,173.79,8.8906]
[1641205985442,1.63434477,173.89,173.79,16.9906]
[1641205986041,1.63434477,173.89,173.8,1.42669368]
[1641205986240,1.63434477,173.89,173.84,8.6274]
[1641205986241,2.46957667,173.88,173.84,8.6274]
[1641205986643,2.46957667,173.88,173.84,8.8874]
[1641205993673,1.3499,173.91,173.84,8.8874]
[1641205994780,2.67269943,173.9,173.84,8.8874]
[1641205997781,2.67269943,173.9,173.84,8.9074]
[1641205999481,2.67269943,173.9,173.84,8.6474]
[1641206000886,2.67269943,173.9,173.84,8.9074]
[1641206016705,157.3328,173.92,173.84,8.9074]
[1641206017402,157.3328,173.92,173.84,10.1898]
[1641206018002,159.83835828,173.92,173.84,10.1898]
[1641206019707,159.83835828,173.92,173.84,11.61649368]
[1641206021107,82.25135828,173.92,173.84,11.61649368]
[1641206021909,31.15380306,173.95,173.84,11.61649368]
[1641206022112,77.37254477,173.97,173.91,8.6246]
[1641206022613,77.37254477,173.97,173.91,8.8846]
[1641206023013,79.5960692,173.97,173.91,8.8846]
[1641206023213,77.96172443,173.97,173.91,8.8846]
[1641206023412,2.37681396,173.99,173.91,10.31129368]
[1641206023712,2.37681396,173.99,173.91,18.41129368]
[1641206023913,0.74246919,173.99,173.91,18.41129368]
[1641206024312,3.02715296,173.99,173.91,18.41129368]
[1641206024916,0.74246919,173.99,173.91,18.41129368]
[1641206025718,0.74246919,173.99,173.91,19.66829368]
[1641206025918,3.70752606,173.99,173.91,19.66829368]
[1641206026823,0.74246919,173.99,173.91,19.66829368]
[1641206027739,2.97859635,173.98,173.91,19.66829368]
[1641206028337,2.97859635,173.98,173.91,19.68829368]
[1641206028737,2.97859635,173.98,173.91,18.0016]
[1641206029543,2.97859635,173.98,173.95,8.6218]
[1641206029744,0.74246919,173.99,173.95,8.6218]
[1641206030148,0.74246919,173.99,173.95,8.8818]
[1641206030846,3.656717,173.99,173.95,8.8818]
[1641206031745,3.656717,173.99,173.95,8.6218]
[1641206033145,3.656717,173.99,173.95,8.8818]
[1641206033346,3.656717,173.99,173.95,10.30849368]
[1641206033644,3.656717,173.99,173.95,10.32849368]
[1641206034446,0.74246919,173.99,173.95,10.32849368]
[1641206034846,0.74246919,173.99,173.95,8.9018]
[1641206035545,3.06754121,173.99,173.95,8.9018]
[1641206036047,3.06754121,173.99,173.95,8.6418]
[1641206037451,3.06754121,173.99,173.95,8.9018]
[1641206039453,3.06754121,173.99,173.97,8.6206]
[1641206039657,3.06754121,173.99,173.98,3.03219995]
[1641206040055,0.74246919,173.99,173.98,3.29219995]
[1641206041155,2.92551366,173.99,173.98,3.29219995]
[1641206041355,2.92551366,173.99,173.98,11.91269995]
[1641206042556,0.74246919,173.99,173.98,11.91269995]
[1641206042759,0.74246919,173.99,173.98,20.01269995]
[1641206043759,0.74246919,173.99,173.98,20.03269995]
[1641206043962,0.74246919,173.99,173.98,21.45939363]
[1641206044159,62.0,173.98,173.94,8.1]
[1641206044360,62.0,173.97,173.84,8.1]
[1641206044762,2.33158789,173.96,173.84,8.1]
[1641206044963,8.6267,173.94,173.84,8.1]
[1641206045162,80.96018789,173.96,173.85,20.91158265]
[1641206045789,82.59453266,173.96,173.85,20.91158265]
[1641206046192,82.59453266,173.96,173.86,8.1]
[1641206046792,80.96018789,173.96,173.86,8.1]
[1641206047194,80.96018789,173.96,173.91,8.624]
[1641206047493,0.74246919,173.99,173.91,8.884]
[1641206047494,2.37681396,173.99,173.91,8.884]
[1641206048097,0.74246919,173.99,173.91,8.884]
[1641206048295,0.74246919,173.99,173.91,16.984]
[1641206048496,3.6157373,173.99,173.91,16.984]
[1641206051304,0.74246919,173.99,173.91,16.984]
[1641206052101,0.74246919,173.99,173.91,118.214]
[1641206052503,0.74246919,173.99,173.92,57.57]
[1641206052704,0.74246919,173.99,173.95,8.6196]
[1641206053004,0.74246919,173.99,173.96,8.1]
[1641206053411,0.74246919,173.99,173.96,8.36]
[1641206054408,0.74246919,173.99,173.97,8.6202]
[1641206054604,0.74246919,173.99,173.98,8.1]
[1641206055007,0.74246919,173.99,173.98,8.36]
[1641206056404,0.74246919,173.99,173.98,16.9797]
[1641206057007,0.74246919,173.99,173.98,16.7197]
[1641206058909,0.74246919,173.99,173.98,16.9797]
[1641206060813,0.74246919,173.99,173.98,16.7197]
[1641206062210,0.74246919,173.99,173.98,16.9797]
[1641206062611,0.74246919,173.99,173.98,16.7197]
[1641206064114,0.74246919,173.99,173.98,16.9797]
[1641206065117,6.919e-05,173.99,173.98,50.40639368]
[1641206066216,6.919e-05,173.99,173.98,50.14639368]
[1641206067214,6.919e-05,173.99,173.98,18.14639368]
[1641206067416,6.919e-05,173.99,173.98,16.7197]
[1641206069016,6.919e-05,173.99,173.98,16.9797]
[1641206072044,6.919e-05,173.99,173.98,16.7197]
[1641206074023,6.919e-05,173.99,173.98,16.9797]
[1641206075426,6.919e-05,173.99,173.98,18.40639368]
[1641206078429,6.919e-05,173.99,173.98,27.21829368]
[1641206078933,6.919e-05,173.99,173.98,26.95829368]
[1641206081955,6.919e-05,173.99,173.98,27.21829368]
[1641206082655,6.919e-05,173.99,173.98,18.40639368]
[1641206094714,6.919e-05,173.99,173.98,19.70889368]
[1641206108530,0.28873874,174.01,173.98,130.49843959]
[1641206108730,156.0853,174.1,174.01,50.0]
[1641206108932,156.0853,174.1,174.02,8.1]
[1641206109132,156.0853,174.1,174.02,9.52669368]
[1641206109335,156.0853,174.1,174.03,1.42669368]
[1641206109574,156.0853,174.1,174.04,8.1]
[1641206109776,156.0853,174.1,174.07,8.1146]
[1641206109977,6.06439994,174.09,174.08,8.1]
[1641206110176,4.0931396,174.14,174.08,8.1]
[1641206110373,1.63434477,174.14,174.08,8.36]
[1641206111373,3.88717976,174.14,174.08,16.7146]
[1641206111575,2.25283499,174.14,174.08,16.7146]
[1641206112877,2.25283499,174.14,174.08,16.9746]
[1641206115082,29.88565658,174.14,174.08,16.7146]
[1641206115379,38.50175658,174.14,174.08,8.1]
[1641206116581,38.50175658,174.14,174.08,8.36]
[1641206117182,10.86893499,174.14,174.08,8.36]
[1641206120287,2.25283499,174.14,174.08,8.36]
[1641206120485,2.25283499,174.14,174.08,16.9756]
[1641206124712,2.25283499,174.14,174.09,1.42669368]
[1641206124913,2.25283499,174.14,174.1,8.6142]
[1641206125115,2.25283499,174.14,174.1,8.8742]
[1641206135624,2.25283499,174.14,174.1,8.6142]
[1641206135824,2.25283499,174.14,174.09,8.615]
[1641206136026,2.25283499,174.14,174.09,16.715]
[1641206136232,2.25283499,174.14,174.09,8.1]
[1641206136827,10.86903499,174.14,174.09,8.1]
[1641206138529,10.86903499,174.14,174.06,16.7165]
[1641206139030,10.86903499,174.14,174.06,16.9765]
[1641206161850,10.86903499,174.14,174.12,0.75675173]
[1641206162074,59.06439994,174.13,174.12,0.75675173]
[1641206162349,67.68089994,174.13,174.12,0.75675173]
[1641206163551,67.68089994,174.13,174.12,0.00675173]
[1641206163751,67.94089994,174.13,174.12,0.00675173]
[1641206163955,69.25499994,174.13,174.12,0.00675173]
[1641206164151,69.75499994,174.13,174.12,0.00675173]
[1641206167353,71.38934471,174.13,174.12,0.00675173]
[1641206168054,69.75499994,174.13,174.12,0.00675173]
[1641206170759,69.75499994,174.13,173.99,8.1]
[1641206171057,71.18169362,174.13,173.99,8.1]
[1641206171961,1.63434477,174.12,173.99,8.1]
[1641206172258,11.46460268,174.07,173.99,8.1]
[1641206172559,2.84470268,174.07,173.99,8.36]
[1641206173158,1.2677,174.11,173.99,8.36]
[1641206173561,8.618,174.1,173.99,16.9797]
[1641206173860,8.618,174.1,174.0,1.3317]
[1641206174060,8.618,174.1,174.01,8.1]
[1641206174260,2.56462814,174.09,174.01,8.1]
[1641206174560,2.56462814,174.09,174.01,8.36]
[1641206175166,8.618,174.1,174.01,8.36]
[1641206175361,8.618,174.1,174.03,8.6177]
[1641206175561,8.618,174.1,174.03,8.8777]
[1641206175761,8.6175,174.11,174.03,16.9777]
[1641206175967,1.3175,174.13,174.04,1.2344]
[1641206176163,2.93233008,174.12,174.05,8.1]
[1641206176564,2.93233008,174.12,174.05,8.36]
[1641206177465,2.93233008,174.12,174.05,16.9766]
[1641206179666,11.54933008,174.12,174.05,16.9766]
[1641206181867,2.93233008,174.12,174.05,16.9766]
[1641206194600,2.93233008,174.12,174.05,16.7166]
[1641206194803,11.54943008,174.12,174.05,8.1]
[1641206196002,11.54943008,174.12,174.05,8.36]
[1641206199006,11.54943008,174.12,174.05,16.9769]
[1641206203008,11.54943008,174.12,174.05,8.36]
[1641206211026,12.04943008,174.12,174.05,8.36]
[1641206213831,11.54943008,174.12,174.05,8.36]
[1641206220361,11.54943008,174.12,174.05,8.1]
[1641206220554,11.80943008,174.12,174.05,8.1]
[1641206220755,11.80943008,174.12,174.02,8.1]
[1641206221457,8.6189,174.08,174.02,8.1]
[1641206221655,8.6189,174.08,174.02,8.36]
[1641206221856,1.3483,174.11,174.02,8.36]
[1641206222559,8.6189,174.09,174.02,8.36]
[1641206224164,9.947,174.09,174.02,8.36]
[1641206225872,1.3281,174.09,174.02,16.9781]
[1641206228767,9.9465,174.09,174.02,8.1]
[1641206230870,10.2065,174.09,174.02,8.1]
[1641206231370,10.2065,174.09,174.02,8.36]
[1641206233069,10.2065,174.09,174.02,16.8012]
[1641206233669,10.2065,174.09,174.02,8.36]
[1641206234271,9.9465,174.09,174.02,8.36]
[1641206234871,1.3281,174.09,174.02,8.36]
[1641206235879,9.9465,174.09,174.02,16.9782]
[1641206237473,10.2065,174.09,174.02,8.1]
[1641206237673,9.9465,174.09,174.02,8.1]
[1641206238373,10.2065,174.09,174.02,8.1]
[1641206238775,9.9465,174.09,174.02,8.1]
[1641206239981,9.9465,174.09,174.02,8.36]
[1641206241582,1.3281,174.09,174.02,16.9783]
[1641206245806,8.6174,174.11,174.02,16.9783]
[1641206246307,9.9332,174.11,174.02,16.7183]
[1641206247508,9.9332,174.11,174.02,16.9783]
[1641206247906,9.9332,174.11,174.02,16.7183]
[1641206249307,9.4332,174.11,174.02,16.9783]
[1641206253513,1.3158,174.11,174.02,16.9783]
[1641206253714,151.4651,174.14,174.02,16.9783]
[1641206253915,152.7584,174.14,174.02,16.9783]
[1641206254118,152.7584,174.14,174.02,118.2083]
[1641206254317,2.22526312,174.14,174.02,118.2083]
[1641206254517,2.22526312,174.14,174.03,1.2565]
[1641206254717,2.22526312,174.14,174.08,8.6149]
[1641206254919,2.22526312,174.14,174.09,8.1]
[1641206255118,2.22526312,174.14,174.09,8.36]
[1641206257021,2.22526312,174.14,174.09,16.9751]
[1641206263830,9.8342,174.18,174.09,16.9751]
[1641206264831,3.00352878,174.17,174.09,16.9751]
[1641206266833,75.5917,174.2,174.09,16.9751]
[1641206267033,75.5917,174.2,174.1,1.2634]
[1641206267233,75.5917,174.2,174.13,8.6128]
[1641206267635,75.5917,174.2,174.13,8.8728]
[1641206267832,2.49000867,174.19,174.13,8.8728]
[1641206268032,2.49000867,174.19,174.14,8.1]
[1641206268432,2.49000867,174.19,174.14,8.36]
[1641206269234,94.0,174.22,174.14,16.7126]
[1641206270239,2.67494163,174.21,174.14,16.7126]
[1641206271269,3.93594163,174.21,174.14,16.7126]
[1641206271872,12.54864163,174.21,174.14,16.7126]
[1641206272079,12.54864163,174.21,174.14,8.36]
[1641206274867,13.04864163,174.21,174.14,8.36]
[1641206277772,12.54864163,174.21,174.14,8.36]
[1641206279476,12.54864163,174.21,174.14,16.9729]
[1641206279976,12.54864163,174.21,174.14,8.1]
[1641206280375,11.28764163,174.21,174.14,16.7129]
[1641206280576,2.67494163,174.21,174.14,16.7129]
[1641206281275,2.67494163,174.21,174.14,16.9729]
[1641206282476,2.67494163,174.21,174.14,16.7129]
[1641206283577,2.67494163,174.21,174.14,16.9729]
[1641206285976,2.67494163,174.21,174.14,16.7129]
[1641206287485,2.67494163,174.21,174.14,16.9729]
[1641206291087,2.67494163,174.21,174.14,16.7129]
[1641206292493,11.28764163,174.21,174.14,8.1]
[1641206293695,2.67494163,174.21,174.14,16.7129]
[1641206293891,2.67494163,174.21,174.14,16.9729]
[1641206295491,1.2535,174.23,174.14,16.9729]
[1641206295903,8.6111,174.24,174.14,16.9729]
[1641206296196,1.1076106,174.26,174.14,18.39959368]
[1641206296392,2.9317106,174.26,174.15,1.2694]
[1641206296593,2.66084358,174.25,174.19,8.6103]
[1641206296791,2.66084358,174.25,174.19,16.7103]
[1641206296992,2.66084358,174.25,174.19,16.9703]
[1641206298416,11.27134358,174.25,174.19,16.9703]
[1641206305121,2.66084358,174.25,174.19,16.9703]
[1641206306123,2.66084358,174.25,174.19,16.7103]
[1641206306323,11.27154358,174.25,174.19,16.7103]
[1641206308026,11.27154358,174.25,174.19,16.9703]
[1641206312034,2.66084358,174.25,174.19,16.9703]
[1641206312233,2.66084358,174.25,174.19,18.39699368]
[1641206312434,1.1076106,174.26,174.19,16.9703]
[1641206312834,1.1076106,174.26,174.2,1.42669368]
[1641206313044,1.1076106,174.26,174.23,8.6078]
[1641206313237,1.1076106,174.26,174.24,8.1]
[1641206313638,1.1076106,174.26,174.24,8.36]
[1641206314038,1.1076106,174.26,174.25,37.03429368]
[1641206314237,1.1076106,174.26,174.25,45.13429368]
[1641206314439,1.1076106,174.26,174.25,146.62429368]
[1641206315542,151.01494422,174.35,174.25,146.62429368]
[1641206315543,74.3271,174.35,174.26,50.1076]
[1641206315740,1.2902,174.39,174.3,8.6034]
[1641206315942,1.2902,174.39,174.31,8.1]
[1641206316341,1.2902,174.39,174.31,9.78669368]
[1641206316342,4.2372419,174.39,174.31,9.78669368]
[1641206316541,2.9470419,174.39,174.32,1.42669368]
[1641206316741,2.9470419,174.39,174.33,8.1]
[1641206317141,2.9470419,174.39,174.34,1.42669368]
[1641206317341,2.9470419,174.39,174.35,8.1]
[1641206320447,2.9470419,174.39,174.35,8.36]
[1641206321346,2.9470419,174.39,174.35,16.9629]
[1641206322346,2.9470419,174.39,174.35,8.1]
[1641206323671,2.9470419,174.39,174.35,8.36]
[1641206325073,2.9470419,174.39,174.35,16.9626]
[1641206325877,2.9470419,174.39,174.35,8.36]
[1641206326476,11.5510419,174.39,174.35,8.1]
[1641206326882,11.5510419,174.39,174.35,8.36]
[1641206327081,11.5510419,174.39,174.35,8.1]
[1641206327982,1.9470419,174.39,174.35,8.1]
[1641206328483,1.9470419,174.39,174.35,8.36]
[1641206331590,1.4470419,174.39,174.35,8.1]
[1641206331790,10.0510419,174.39,174.35,8.1]
[1641206334789,10.0510419,174.39,174.35,8.36]
[1641206334990,10.0510419,174.39,174.34,8.1]
[1641206335393,10.0510419,174.39,174.34,8.36]
[1641206336792,10.0510419,174.39,174.34,8.1]
[1641206337194,10.0510419,174.39,174.34,8.36]
[1641206339798,10.0510419,174.39,174.34,8.1]
[1641206340001,10.3110419,174.39,174.34,8.1]
[1641206340399,10.0510419,174.39,174.34,8.1]
[1641206341098,10.0510419,174.39,174.34,8.36]
[1641206341499,10.0510419,174.39,174.34,8.1]
[1641206341898,10.3110419,174.39,174.34,8.1]
[1641206342524,10.0510419,174.39,174.34,8.1]
[1641206342824,1.4470419,174.39,174.34,16.9633]
[1641206343426,1.4470419,174.39,174.34,8.36]
[1641206345327,10.0510419,174.39,174.34,8.36]
[1641206346928,1.337,174.42,174.34,8.36]
[1641206347130,28.39579739,174.44,174.34,8.36]
[1641206347329,28.39579739,174.44,174.34,16.9632]
[1641206347927,31.33564165,174.44,174.34,118.1932]
[1641206348331,2.93984426,174.44,174.34,118.1932]
[1641206350732,2.93984426,174.44,174.35,1.2284]
[1641206350931,2.93984426,174.44,174.38,8.6011]
[1641206351233,2.93984426,174.44,174.39,8.1]
[1641206351730,2.93984426,174.44,174.39,8.36]
[1641206352931,2.93984426,174.44,174.39,16.9608]
[1641206353535,9.9194,174.47,174.39,16.9608]
[1641206353732,10.4194,174.47,174.39,16.9608]
[1641206353934,1.8189,174.47,174.39,16.9608]
[1641206354333,1.3189,174.47,174.39,16.9608]
[1641206354734,2.19326239,174.46,174.39,16.9608]
[1641206359437,2.19326239,174.46,174.39,16.7008]
[1641206360839,2.19326239,174.46,174.39,16.9608]
[1641206362943,94.0,174.48,174.39,16.9608]
[1641206363144,155.3386,174.52,174.41,101.23]
[1641206363346,157.1748,174.52,174.46,8.5971]
[1641206363543,155.8709,174.52,174.47,8.1]
[1641206363944,2.50656868,174.51,174.47,8.36]
[1641206365147,74.9692,174.52,174.47,8.36]
[1641206366149,2.58721272,174.51,174.47,8.36]
[1641206366350,105.53880399,174.52,174.47,8.1]
[1641206367352,10.83096184,174.51,174.47,8.1]
[1641206368482,11.09096184,174.51,174.47,8.1]
[1641206369983,10.83096184,174.51,174.47,8.1]
[1641206370586,10.83096184,174.51,174.47,8.36]
[1641206371383,10.83096184,174.51,174.47,8.1]
[1641206371583,10.33096184,174.51,174.47,8.1]
[1641206373984,10.33096184,174.51,174.47,8.36]
[1641206376789,10.33096184,174.51,174.47,8.1]
[1641206376986,10.59096184,174.51,174.44,8.1]
[1641206377188,10.33096184,174.51,174.44,8.1]
[1641206377386,10.59096184,174.51,174.44,8.1]
[1641206377986,10.33096184,174.51,174.44,8.1]
[1641206378791,10.33096184,174.51,174.44,8.36]
[1641206379991,10.59096184,174.51,174.44,8.1]
[1641206380193,10.59096184,174.51,174.38,1.316]
[1641206380392,77.2782,174.5,174.39,8.1]
[1641206380692,2.50541678,174.44,174.39,8.1]
[1641206381491,2.50541678,174.44,174.39,8.36]
[1641206382295,11.10671678,174.44,174.39,8.36]
[1641206383897,8.6013,174.44,174.39,8.36]
[1641206384097,25.08575993,174.45,174.39,16.9605]
[1641206385107,2.8578865,174.46,174.39,16.9605]
[1641206386299,11.4581865,174.46,174.39,16.7005]
[1641206388102,2.8578865,174.46,174.39,16.9605]
[1641206392305,2.8578865,174.46,174.39,18.38719368]
[1641206399612,2.8578865,174.46,174.39,18.12719368]
[1641206401011,2.8578865,174.46,174.39,18.38719368]
[1641206401516,102.12335557,174.52,174.39,18.38719368]
[1641206401713,103.45605557,174.52,174.39,18.38719368]
[1641206402314,8.5986,174.5,174.43,8.5982]
[1641206402514,8.5986,174.5,174.44,8.1]
[1641206402915,8.5986,174.5,174.44,8.36]
[1641206406518,8.5986,174.5,174.44,8.1]
[1641206406919,2.57764724,174.51,174.44,8.1]
[1641206407520,2.57764724,174.51,174.45,1.42669368]
[1641206407720,2.57764724,174.51,174.48,8.596]
[1641206407924,2.57764724,174.51,174.49,8.1]
[1641206408120,74.9692,174.52,174.49,8.36]
[1641206408321,0.08121775,174.53,174.49,8.36]
[1641206408523,0.08121775,174.53,174.49,8.1]
[1641206408725,0.08121775,174.53,174.49,8.36]
[1641206409125,2.45236186,174.52,174.49,8.36]
[1641206409326,6.06439994,174.51,174.49,8.1]
[1641206409526,6.06439994,174.51,174.49,8.36]
[1641206411451,31.6182046,174.51,174.49,8.36]
[1641206413551,31.6182046,174.51,174.49,0.26]
[1641206413951,31.6182046,174.51,174.48,8.36]
[1641206417256,31.6182046,174.51,174.48,8.1]
[1641206418460,40.2161046,174.51,174.48,8.1]
[1641206418663,40.2161046,174.51,174.46,8.1]
[1641206418859,40.2161046,174.51,174.43,8.1]
[1641206419159,40.4761046,174.51,174.43,8.1]
[1641206419659,41.7712046,174.51,174.43,8.1]
[1641206420363,42.2712046,174.51,174.43,8.1]
[1641206422065,42.0112046,174.51,174.43,8.1]
[1641206422265,41.5112046,174.51,174.43,8.36]
[1641206422865,41.5112046,174.51,174.43,16.9587]
[1641206424467,41.7712046,174.51,174.43,8.36]
[1641206427973,41.7712046,174.51,174.43,8.1]
[1641206428171,42.0112046,174.51,174.43,8.1]
[1641206428576,42.0112046,174.51,174.43,8.36]
[1641206428976,42.0112046,174.51,174.43,8.1]